bitfinex/quotes_ETHUSD_20251124
["timestamp","ask_amount","ask_price","bid_price","bid_amount"]
[1763950348114,0.4612,2862.4,2862.3,3.737223]
[1763950348636,0.4612,2862.4,2861.7,0.091]
[1763950348951,0.4612,2862.4,2862.1,3.737223]
[1763950349328,0.4612,2862.4,2860.0,3.49644782]
[1763950349510,0.4612,2862.4,2860.3,5.752148]
[1763950349716,0.4632,2862.4,2861.5,0.091]
[1763950349924,0.4632,2862.4,2861.6,3.737223]
[1763950350424,0.1851,2861.7,2861.6,3.737223]
[1763950350627,0.1851,2861.7,2861.6,3.828223]
[1763950350800,0.6463,2861.7,2861.6,3.828223]
[1763950351137,0.6463,2861.7,2861.0,0.091]
[1763950351322,0.4612,2861.6,2861.1,3.737223]
[1763950351523,0.4612,2861.6,2861.3,3.737223]
[1763950352319,0.4612,2861.6,2861.0,0.091]
[1763950352523,0.4612,2861.6,2861.3,3.737223]
[1763950352934,0.4612,2861.6,2861.5,3.828223]
[1763950354015,0.4612,2861.6,2861.5,3.737223]
[1763950354448,0.4536,2861.6,2861.5,3.737223]
[1763950354620,0.9148,2861.6,2861.5,3.737223]
[1763950355848,0.9148,2861.6,2860.8,0.091]
[1763950356048,0.9148,2861.5,2860.9,3.737223]
[1763950356357,0.4536,2861.0,2860.9,3.737223]
[1763950356557,0.4536,2861.0,2859.8,3.88139934]
[1763950356558,0.4536,2861.0,2860.2,0.091]
[1763950356843,1.55459264,2860.9,2860.0,3.737223]
[1763950357047,0.6364163,2860.8,2859.7,0.091]
[1763950357248,1.1003163,2860.8,2859.8,3.737223]
[1763950357448,0.4639,2860.7,2860.0,3.737223]
[1763950358112,0.4639,2860.7,2859.1,3.49758207]
[1763950358113,0.4639,2860.7,2859.3,0.235]
[1763950358316,0.4639,2860.7,2859.9,3.737223]
[1763950358740,0.4639,2860.7,2860.0,3.737223]
[1763950359510,0.4905,2860.1,2860.0,3.737223]
[1763950359763,0.4905,2860.1,2859.3,3.737223]
[1763950359966,0.4905,2860.1,2860.0,0.091]
[1763950360122,0.4905,2860.1,2860.0,3.828223]
[1763950360660,0.9544,2860.1,2860.0,3.828223]
[1763950360860,0.9544,2860.1,2859.4,3.737223]
[1763950361069,0.9544,2860.1,2859.9,3.737223]
[1763950361515,0.9544,2860.0,2859.9,3.737223]
[1763950363013,0.9544,2860.0,2858.6,3.49921265]
[1763950363014,0.9544,2860.0,2859.3,0.091]
[1763950363231,1.1381,2859.9,2859.4,3.737223]
[1763950363430,0.6476,2859.9,2859.4,3.737223]
[1763950363630,0.4905,2859.5,2859.4,3.737223]
[1763950364027,0.9544,2859.5,2859.4,3.737223]
[1763950364251,0.9544,2859.5,2859.1,3.737223]
[1763950364559,0.9691,2859.4,2859.1,3.737223]
[1763950364763,0.4949,2859.2,2859.1,3.737223]
[1763950365335,0.9691,2859.2,2859.1,3.737223]
[1763950365652,0.9691,2859.2,2858.6,0.001]
[1763950365957,3.49674802,2859.8,2858.6,0.001]
[1763950365958,0.6925,2858.7,2858.6,0.001]
[1763950366321,1.1667,2858.7,2858.1,0.001]
[1763950366655,0.4949,2858.5,2858.4,3.738223]
[1763950367032,0.9691,2858.5,2858.4,3.738223]
[1763950367943,0.9691,2858.5,2858.4,0.001]
[1763950368144,0.1976,2858.7,2858.4,0.092]
[1763950368342,0.6718,2858.7,2858.5,3.737223]
[1763950368553,0.1976,2858.7,2858.5,3.737223]
[1763950368854,0.1976,2858.7,2858.6,0.091]
[1763950369663,0.1976,2859.0,2858.4,0.001]
[1763950369827,0.1976,2859.0,2858.8,3.737223]
[1763950370230,0.6718,2859.0,2858.8,3.737223]
[1763950370660,0.6718,2859.0,2858.9,0.091]
[1763950370830,0.1976,2859.0,2858.9,0.091]
[1763950371329,1.1667,2859.0,2858.7,0.091]
[1763950371531,1.1667,2859.0,2858.4,0.001]
[1763950371833,0.4742,2858.9,2858.6,3.737223]
[1763950372257,0.1976,2859.0,2858.6,3.737223]
[1763950372455,0.1976,2859.0,2858.8,0.091]
[1763950372828,0.4949,2858.9,2858.4,0.001]
[1763950373166,0.6718,2859.0,2858.5,3.737223]
[1763950373365,0.4742,2858.9,2858.5,3.737223]
[1763950373671,0.4949,2858.6,2858.5,3.737223]
[1763950374167,0.9691,2858.6,2858.5,3.737223]
[1763950375574,0.9691,2858.6,2858.4,0.001]
[1763950375864,0.9691,2858.5,2858.4,0.001]
[1763950377397,0.4742,2858.8,2858.4,0.001]
[1763950377675,0.4742,2858.9,2858.4,0.001]
[1763950377850,0.4949,2858.5,2858.4,0.001]
[1763950378279,0.9691,2858.5,2858.4,0.001]
[1763950380743,0.1976,2859.0,2858.5,0.091]
[1763950380980,0.6718,2859.0,2858.6,2.222393]
[1763950381353,0.4742,2858.9,2858.6,2.222393]
[1763950383565,0.1976,2859.0,2858.8,0.091]
[1763950383991,0.1976,2859.0,2858.9,2.222393]
[1763950384197,0.1976,2859.5,2859.0,2.222393]
[1763950384357,0.1976,2859.5,2859.3,2.222393]
[1763950384557,0.1837,2859.9,2858.9,0.2313393]
[1763950384558,0.1837,2859.9,2859.4,0.0011]
[1763950384758,0.4742,2860.3,2859.5,2.222393]
[1763950384973,0.4742,2860.3,2858.9,0.2313393]
[1763950385177,0.1976,2859.5,2859.2,0.091]
[1763950385505,0.1976,2859.5,2858.1,0.0021]
[1763950385666,0.1976,2859.5,2858.3,0.091]
[1763950385667,0.4742,2859.4,2858.3,0.091]
[1763950386010,0.34482916,2860.1,2859.5,2.384082]
[1763950386212,0.4742,2861.8,2859.7,2.474486]
[1763950386493,1.0247061,2861.6,2860.8,0.091]
[1763950386667,0.4762,2861.6,2860.5,0.091]
[1763950386868,0.4762,2861.6,2859.7,5.960328]
[1763950386869,0.4929,2861.5,2860.9,0.091]
[1763950387198,0.4929,2861.5,2860.7,0.091]
[1763950387892,0.182,2860.8,2860.4,0.091]
[1763950388263,0.4929,2860.7,2860.4,0.091]
[1763950388665,0.4929,2860.7,2859.3,3.49726135]
[1763950388974,0.4929,2860.7,2860.2,0.091]
[1763950389168,0.4929,2860.7,2860.5,0.091]
[1763950389714,0.182,2860.8,2860.5,0.091]
[1763950390419,0.6749,2860.8,2860.5,0.091]
[1763950391389,0.182,2860.8,2860.5,0.091]
[1763950392976,0.4559,2860.6,2859.1,0.90699264]
[1763950393178,0.4559,2860.6,2860.3,0.091]
[1763950393419,0.4559,2860.6,2859.2,4.04342422]
[1763950393420,0.182,2860.8,2859.3,0.03497359]
[1763950393731,0.6749,2860.8,2859.2,4.04342422]
[1763950393910,0.6749,2860.8,2860.1,0.091]
[1763950394089,0.4929,2860.7,2860.1,0.091]
[1763950394492,0.4559,2860.2,2859.4,0.091]
[1763950394890,0.4929,2860.1,2859.4,0.091]
[1763950395515,0.4929,2860.1,2858.6,0.03498215]
[1763950395704,0.4929,2860.1,2859.5,0.091]
[1763950396017,0.4929,2860.1,2858.8,0.03497971]
[1763950396217,0.4929,2860.1,2858.4,0.001]
[1763950396379,0.4929,2860.1,2859.2,0.091]
[1763950396586,0.4929,2860.1,2859.3,0.091]
[1763950396829,0.90699264,2860.0,2858.4,0.001]
[1763950397036,0.48963316,2859.9,2858.9,0.091]
[1763950397239,1.16453316,2859.9,2858.9,0.091]
[1763950397708,0.4929,2859.8,2858.9,0.091]
[1763950397902,0.4929,2859.8,2858.4,0.001]
[1763950397903,0.4929,2859.8,2859.1,0.091]
[1763950398139,0.182,2859.9,2858.4,10.49633125]
[1763950398329,0.6083229,2860.8,2858.4,10.49633125]
[1763950398330,0.182,2860.0,2859.6,0.091]
[1763950398509,0.182,2860.0,2859.9,0.091]
[1763950399263,0.182,2860.0,2858.4,0.001]
[1763950399264,1.1308,2860.0,2859.6,0.091]
[1763950399547,0.182,2860.0,2858.4,0.001]
[1763950399748,0.4929,2860.3,2859.9,0.091]
[1763950401150,5.00865534,2860.0,2858.1,0.001]
[1763950401324,0.146,2858.7,2858.1,0.001]
[1763950401921,0.4929,2859.0,2858.5,0.1]
[1763950402140,0.182,2858.9,2858.1,0.001]
[1763950402324,0.182,2858.9,2858.7,0.1]
[1763950402527,0.182,2859.1,2858.1,0.001]
[1763950402707,0.6749,2859.1,2858.7,0.1]
[1763950402913,0.6749,2859.1,2858.4,0.101]
[1763950403209,0.4929,2859.0,2858.4,0.101]
[1763950403411,0.4929,2859.0,2858.5,0.1]
[1763950403612,0.4929,2859.0,2858.7,0.1]
[1763950405056,0.4929,2859.0,2858.5,0.1]
[1763950405258,0.4559,2858.8,2858.5,0.1]
[1763950405842,0.4559,2858.6,2858.4,0.001]
[1763950406252,0.9488,2858.5,2858.4,0.001]
[1763950407159,0.4559,2858.5,2858.4,0.001]
[1763950407471,0.9488,2858.5,2858.4,0.001]
[1763950407686,0.9488,2858.5,2858.1,0.001]
[1763950407836,0.4559,2858.2,2858.1,0.001]
[1763950408330,0.9488,2858.2,2858.1,0.001]
[1763950408535,0.4559,2858.2,2858.1,0.001]
[1763950408735,0.4929,2858.5,2858.1,0.001]
[1763950408990,0.4929,2858.9,2858.3,0.1]
[1763950409270,0.4559,2858.2,2858.1,0.001]
[1763950409771,0.9488,2858.2,2858.1,0.001]
[1763950410266,0.4559,2858.2,2858.1,0.001]
[1763950410876,0.9488,2858.2,2858.1,0.001]
[1763950412142,0.4929,2858.6,2858.1,0.001]
[1763950412368,0.4929,2859.0,2858.1,0.001]
[1763950412541,0.4929,2859.0,2858.5,0.1]
[1763950412955,0.4559,2858.6,2858.1,0.001]
[1763950413148,0.4559,2858.6,2858.3,0.1]
[1763950413344,0.9488,2858.6,2858.1,0.001]
[1763950413744,0.4929,2858.5,2858.1,0.001]
[1763950414354,0.4559,2858.2,2858.1,0.001]
[1763950414878,0.9488,2858.2,2858.1,0.001]
[1763950415079,0.4929,2858.7,2858.1,0.001]
[1763950415380,4.89764169,2859.0,2858.1,0.101]
[1763950415583,1.00086417,2858.9,2858.1,0.101]
[1763950415793,0.4929,2858.9,2858.5,0.1]
[1763950416361,0.4559,2858.6,2858.1,0.001]
[1763950416763,0.4559,2858.6,2858.3,0.1]
[1763950416963,0.4929,2858.9,2858.3,0.1]
[1763950418966,0.6627,2859.5,2858.8,0.1]
[1763950419195,0.198,2859.5,2858.8,0.1]
[1763950419510,0.4647,2859.4,2858.8,0.1]
[1763950420396,1.37169264,2859.4,2858.6,0.1]
[1763950420773,0.4647,2859.3,2858.6,0.1]
[1763950420972,0.4922,2858.7,2858.1,0.001]
[1763950421291,0.4922,2858.2,2858.1,0.001]
[1763950421793,0.9569,2858.2,2858.1,0.001]
[1763950422186,0.4647,2858.7,2858.1,0.001]
[1763950422495,0.4647,2859.1,2858.4,0.1]
[1763950423504,0.4647,2859.1,2858.1,0.001]
[1763950423715,0.4647,2859.1,2858.5,0.1]
[1763950424616,0.4667,2859.1,2858.5,0.1]
[1763950425321,0.002,2859.1,2858.5,0.1]
[1763950425622,0.002,2859.1,2858.9,0.1]
[1763950425820,0.002,2859.1,2858.8,0.1]
[1763950426320,0.4743,2859.0,2858.5,0.1]
[1763950427190,0.4743,2859.0,2858.4,0.001]
[1763950427923,0.4742,2858.5,2858.4,0.001]
[1763950428292,0.002,2859.1,2858.4,0.001]
[1763950428693,0.002,2859.1,2858.4,0.093]
[1763950428913,0.002,2859.1,2858.5,0.1]
[1763950429328,0.002,2859.1,2858.8,0.1]
[1763950429538,0.002,2859.1,2858.4,0.093]
[1763950429830,0.002,2859.1,2858.6,0.1]
[1763950430340,0.002,2859.1,2858.4,0.001]
[1763950430341,0.4743,2859.0,2858.4,0.001]
[1763950430744,0.90699264,2858.9,2858.4,0.001]
[1763950430966,0.4742,2858.5,2858.4,0.001]
[1763950431454,0.9485,2858.5,2858.4,0.001]
[1763950435339,5.35383092,2858.5,2858.4,0.001]
[1763950435529,1.85549264,2858.5,2858.4,0.001]
[1763950435836,5.35383092,2858.5,2858.4,0.001]
[1763950436038,0.50029456,2858.6,2858.5,7.433737]
[1763950436239,0.002,2859.1,2859.0,0.1]
[1763950436479,0.002,2859.1,2859.0,25.44877889]
[1763950436628,0.002,2859.1,2859.0,21.88560411]
[1763950436834,0.002,2860.3,2859.1,0.90699264]
[1763950437128,0.002,2860.3,2860.2,8.68990064]
[1763950437364,0.002,2860.3,2860.2,5.85225564]
[1763950437933,0.002,2860.3,2860.2,8.84150241]
[1763950438286,0.002,2860.3,2860.2,33.99623941]
[1763950438485,0.002,2860.3,2860.2,28.85215258]
[1763950438650,0.002,2860.3,2860.2,15.99430658]
[1763950438855,0.002,2860.3,2860.2,11.81132864]
[1763950439158,0.002,2860.3,2860.2,15.37342364]
[1763950440203,0.002,2860.3,2860.2,14.27488864]
[1763950440356,0.002,2860.3,2860.2,7.24843064]
[1763950440546,0.002,2860.3,2860.2,3.596259]
[1763950440747,0.002,2860.3,2860.2,0.80926608]
[1763950440983,0.002,2860.3,2860.2,0.1]
[1763950444468,0.4763,2860.3,2859.8,0.1]
[1763950444848,0.1975,2859.9,2859.5,0.1]
[1763950445056,0.1975,2859.9,2859.1,0.1]
[1763950445282,0.4743,2859.8,2859.1,0.1]
[1763950445658,0.1975,2859.9,2859.4,0.1]
[1763950445876,0.1975,2859.9,2858.4,6.99791203]
[1763950445877,0.1975,2860.1,2860.0,0.1]
[1763950446076,0.002,2860.3,2860.1,0.1]
[1763950446276,0.002,2860.3,2860.0,0.1]
[1763950446501,0.4524,2860.2,2860.0,0.1]
[1763950446718,0.002,2860.3,2860.0,0.1]
[1763950446872,0.002,2860.3,2860.2,0.1]
[1763950447293,0.4544,2860.3,2859.9,0.1]
[1763950448011,0.4524,2860.2,2859.9,0.1]
[1763950448195,0.4524,2860.2,2859.6,0.1]
[1763950449227,0.002,2860.3,2860.2,0.1]
[1763950451178,0.002,2860.3,2859.7,6.9937307]
[1763950451404,0.002,2860.3,2860.2,0.1]
[1763950455115,0.002,2860.3,2860.2,7.099781]
[1763950455613,0.002,2860.3,2860.2,12.81215761]
[1763950455978,0.002,2860.3,2860.2,9.30863561]
[1763950456212,0.002,2860.3,2860.2,34.34406161]
[1763950456414,0.002,2860.3,2860.2,26.64023808]
[1763950456611,0.002,2860.3,2860.2,25.62959208]
[1763950456781,0.002,2860.3,2860.2,23.37801208]
[1763950457187,0.002,2860.3,2860.2,29.30936908]
[1763950457392,0.002,2860.3,2860.2,25.32784508]
[1763950457598,0.002,2860.3,2860.2,12.49290611]
[1763950457775,0.002,2860.3,2860.2,8.09798764]
[1763950457980,0.002,2860.3,2860.2,4.50325164]
[1763950458210,0.002,2860.3,2860.2,3.596259]
[1763950458418,0.002,2860.3,2860.2,3.63122159]
[1763950458928,0.002,2860.3,2860.2,5.932166]
[1763950459227,0.002,2860.3,2860.2,1.42746658]
[1763950459381,0.002,2860.3,2860.2,0.1]
[1763950461540,0.002,2860.3,2860.2,9.316142]
[1763950462359,0.002,2860.3,2860.2,3.596259]
[1763950462658,0.002,2860.3,2860.2,6.34038759]
[1763950463554,0.002,2860.3,2860.2,3.596259]
[1763950463705,0.002,2860.3,2860.2,4.67856123]
[1763950464105,0.002,2860.3,2860.2,6.79743582]
[1763950464535,0.002,2860.3,2860.2,19.94090246]
[1763950464741,0.002,2860.3,2860.2,19.90593987]
[1763950465101,0.002,2860.3,2860.2,12.92588087]
[1763950465551,0.002,2860.3,2860.2,16.24497587]
[1763950465928,0.002,2860.3,2860.2,12.02662187]
[1763950466236,0.002,2860.3,2860.2,8.07564087]
[1763950466436,0.002,2860.3,2860.2,8.23847087]
[1763950466650,0.002,2860.3,2860.2,7.71247087]
[1763950467507,0.002,2860.3,2860.2,14.64710987]
[1763950467708,0.002,2860.3,2860.2,13.72860987]
[1763950468018,0.002,2860.3,2860.2,9.47497487]
[1763950468222,0.002,2860.6,2860.5,0.1]
[1763950468420,0.002,2860.6,2860.5,19.74973056]
[1763950468745,0.002,2860.6,2860.5,13.39410196]
[1763950468951,0.002,2860.6,2860.5,8.54708496]
[1763950469156,0.002,2860.6,2860.5,9.74330496]
[1763950469320,0.002,2860.6,2860.5,4.73688496]
[1763950469658,0.002,2860.6,2860.5,7.54664388]
[1763950469809,0.002,2860.6,2860.5,7.51168496]
[1763950470229,0.002,2860.6,2860.5,14.32723596]
[1763950470414,0.002,2860.6,2860.5,16.10956083]
[1763950470629,0.002,2860.6,2860.5,15.09706083]
[1763950470842,0.002,2860.6,2860.5,11.06347783]
[1763950471015,0.002,2860.6,2860.5,10.64147783]
[1763950471220,0.002,2860.6,2860.5,15.63436183]
[1763950472157,0.002,2860.6,2860.5,12.75221783]
[1763950472350,0.002,2860.6,2860.5,13.03939583]
[1763950473237,0.002,2860.6,2860.5,14.42348183]
[1763950473456,0.002,2860.6,2860.5,14.14736683]
[1763950474248,0.002,2860.6,2860.5,6.51920983]
[1763950474454,0.002,2860.6,2860.5,23.35967988]
[1763950474654,0.002,2860.6,2860.5,28.13010493]
[1763950474950,0.002,2860.9,2860.8,7.209793]
[1763950475263,0.002,2860.9,2860.8,10.70531872]
[1763950475462,0.002,2860.9,2860.8,16.11420672]
[1763950475666,0.002,2860.9,2860.8,17.79756198]
[1763950475850,0.002,2860.9,2860.8,12.33399398]
[1763950476354,0.002,2860.9,2860.8,14.39430398]
[1763950476532,0.002,2860.9,2860.8,12.35984998]
[1763950477553,0.002,2860.9,2860.8,20.88622998]
[1763950477745,0.002,2860.9,2860.8,18.19220398]
[1763950478059,0.002,2860.9,2860.8,16.46253498]
[1763950478559,0.002,2860.9,2860.8,11.88915798]
[1763950478752,0.002,2860.9,2860.8,9.97071198]
[1763950479526,0.002,2860.9,2860.8,18.45867498]
[1763950479761,0.002,2860.9,2860.8,17.86393898]
[1763950480354,0.1975,2862.9,2862.5,0.1]
[1763950480557,0.56421693,2862.6,2862.5,0.1]
[1763950480749,1.02721693,2862.6,2862.5,0.1]
[1763950484673,1.02721693,2862.6,2862.2,0.1]
[1763950484872,0.4687,2862.5,2862.2,0.1]
[1763950485169,0.463,2862.3,2862.2,0.1]
[1763950485592,0.09551693,2862.6,2862.0,0.234]
[1763950485873,0.1811,2866.0,2864.6,0.1]
[1763950485874,0.6498,2865.0,2864.6,0.1]
[1763950486036,0.4707,2864.7,2864.6,0.1]
[1763950486233,0.002,2864.7,2864.6,0.1]
[1763950486437,3.66986912,2867.7,2864.6,0.1]
[1763950486438,0.1811,2865.0,2864.9,0.19999999]
[1763950486647,0.1811,2865.0,2864.9,0.9138325]
[1763950486875,0.6441,2865.0,2864.9,0.9138325]
[1763950487047,0.1811,2865.0,2864.9,0.9138325]
[1763950487265,0.1811,2865.0,2864.7,4.20768128]
[1763950487266,0.1811,2866.1,2865.4,0.09999999]
[1763950487466,0.463,2865.8,2865.7,0.86359977]
[1763950487657,0.463,2865.8,2865.0,0.09999999]
[1763950487658,0.1679,2865.6,2865.4,1.18734289]
[1763950487852,0.1811,2865.8,2865.2,1.78051241]
[1763950487853,0.1811,2865.8,2865.3,1.78051241]
[1763950488084,0.463,2865.4,2865.2,1.88051241]
[1763950488278,0.1679,2865.3,2865.1,1.88051241]
[1763950488464,0.1811,2865.8,2864.8,1.78051241]
[1763950488465,0.3415,2864.9,2864.8,1.78051241]
[1763950488676,0.5226,2864.9,2864.8,1.78051241]
[1763950488877,0.8108,2864.9,2864.7,0.1]
[1763950489054,0.6309,2864.8,2864.5,1.78051241]
[1763950489390,0.6309,2864.8,2864.4,0.09999999]
[1763950489391,0.1622,2864.6,2864.4,0.09999999]
[1763950489591,0.6309,2864.5,2864.4,0.09999999]
[1763950489891,0.6309,2864.5,2864.3,0.1]
[1763950490091,0.6278,2864.5,2864.4,1.78051241]
[1763950490253,0.4656,2864.5,2864.4,1.8805124]
[1763950490588,0.4656,2864.5,2864.3,0.1]
[1763950490589,0.6308,2864.5,2864.3,0.1]
[1763950490777,0.1652,2864.4,2864.3,0.1]
[1763950491006,0.6278,2864.4,2864.3,0.1]
[1763950491379,0.6278,2864.4,2863.9,1.78051241]
[1763950491581,0.472,2864.3,2864.2,0.1]
[1763950491776,0.0046,2864.3,2864.2,0.19999999]
[1763950491978,0.4674,2864.8,2864.6,0.1]
[1763950492289,0.4674,2864.8,2864.7,0.19999999]
[1763950492705,0.6309,2864.8,2864.7,0.13]
[1763950493261,0.6309,2864.8,2864.7,0.03]
[1763950493559,0.6309,2864.8,2864.6,0.1]
[1763950493784,0.4674,2864.7,2864.5,0.1]
[1763950493984,0.4674,2864.7,2864.4,0.03]
[1763950494295,0.4674,2864.7,2864.4,0.1]
[1763950494512,0.1635,2864.5,2864.4,0.1]
[1763950494668,0.1635,2864.5,2864.0,0.1]
[1763950494881,0.4674,2864.4,2864.0,0.1]
[1763950495089,0.1635,2864.1,2864.0,0.1]
[1763950495573,0.6278,2864.1,2864.0,0.1]
[1763950496177,0.6278,2864.1,2863.9,0.1]
[1763950496419,0.4643,2864.0,2863.9,0.1]
[1763950496623,0.4689,2864.0,2863.9,0.1]
[1763950496808,0.4674,2864.5,2864.2,0.1]
[1763950497003,0.4674,2864.5,2864.3,0.1]
[1763950497396,0.1635,2864.4,2864.0,0.1]
[1763950497590,0.1635,2864.4,2864.1,0.1]
[1763950497795,0.1635,2864.2,2864.1,0.1]
[1763950498007,0.6278,2864.2,2864.1,0.1]
[1763950498213,0.6278,2864.2,2863.2,2.37401654]
[1763950498376,0.6278,2864.2,2864.0,0.1]
[1763950498583,0.1635,2864.2,2864.0,0.1]
[1763950498921,0.1635,2864.1,2864.0,0.1]
[1763950499085,0.1635,2864.1,2863.2,2.37401654]
[1763950499287,0.6278,2864.1,2864.0,0.1]
[1763950499484,0.4694,2864.7,2864.0,0.1]
[1763950499807,0.4694,2864.7,2864.3,0.1]
[1763950500011,0.4694,2864.7,2863.3,0.4532]
[1763950500325,0.4694,2864.7,2864.3,0.1]
[1763950500547,0.002,2864.7,2864.3,0.1]
[1763950500835,0.002,2864.7,2864.6,0.6403]
[1763950500985,0.002,2864.7,2864.6,0.7403]
[1763950501181,0.002,2864.7,2864.5,2.37401654]
[1763950501539,0.7381,2864.6,2864.5,0.1]
[1763950502031,0.7381,2864.6,2864.0,0.233]
[1763950502032,0.002,2864.7,2863.7,0.1833]
[1763950502343,0.2727,2864.6,2864.2,0.1]
[1763950502729,0.7381,2864.6,2863.6,2.37401654]
[1763950502926,0.7381,2864.6,2864.5,0.1]
[1763950503334,0.002,2864.7,2864.1,0.6365]
[1763950503533,0.002,2864.7,2864.6,0.557]
[1763950503749,0.002,2864.7,2864.6,4.04788878]
[1763950504045,0.1811,2867.1,2866.1,0.1]
[1763950504046,0.1928,2866.9,2866.1,0.1]
[1763950504246,0.90699264,2866.8,2865.4,0.1]
[1763950504454,0.90699264,2866.8,2865.6,0.1]
[1763950504455,0.90699264,2866.6,2865.6,0.1]
[1763950504659,0.1928,2865.0,2864.4,2.36508639]
[1763950504814,0.1928,2865.0,2864.9,0.1]
[1763950505017,0.6602,2865.0,2864.9,0.1]
[1763950505234,0.1928,2866.0,2864.9,0.1]
[1763950505549,0.6602,2866.0,2864.4,2.59808639]
[1763950505848,0.6602,2866.0,2864.8,4.53402003]
[1763950505849,0.1928,2866.0,2864.8,4.53402003]
[1763950506153,0.1928,2866.0,2865.9,0.1]
[1763950506655,0.4781,2866.7,2866.3,0.1]
[1763950507210,0.4781,2866.7,2865.4,0.6511]
[1763950507211,0.1811,2867.1,2866.2,0.1825]
[1763950507512,0.6592,2867.1,2866.9,0.1]
[1763950507707,0.1811,2867.1,2866.9,0.1]
[1763950507906,0.1981,2867.3,2866.9,0.1]
[1763950508153,0.1981,2867.3,2867.2,0.1]
[1763950508350,0.18265014,2868.1,2866.3,2.36508639]
[1763950508351,0.1981,2867.9,2866.3,2.36508639]
[1763950508610,0.4781,2867.6,2867.5,0.1]
[1763950508806,0.1981,2867.9,2867.4,0.1]
[1763950509150,0.1981,2867.9,2867.8,0.1]
[1763950509323,0.6762,2867.9,2867.5,0.1]
[1763950509503,0.6762,2867.9,2867.7,0.1]
[1763950509712,0.4781,2867.8,2867.7,0.1]
[1763950509922,0.1981,2867.9,2867.1,0.6503]
[1763950510123,0.66075014,2868.1,2867.8,0.1]
[1763950510443,0.18265014,2868.1,2867.3,0.233]
[1763950510636,0.18265014,2868.1,2868.0,0.1]
[1763950510845,0.4781,2868.5,2868.0,0.1]
[1763950511043,0.4781,2868.5,2867.1,7.67660813]
[1763950511044,0.09388656,2868.6,2868.4,0.1]
[1763950511240,0.09388656,2868.6,2868.5,0.1]
[1763950511425,0.09388656,2868.6,2867.7,2.36508639]
[1763950511664,0.09388656,2868.6,2867.0,2.36508639]
[1763950511665,0.1981,2867.8,2867.0,2.36508639]
[1763950511841,1.11095979,2867.7,2866.6,0.1]
[1763950512045,1.58905979,2867.7,2866.5,4.53402003]
[1763950512360,0.1981,2867.8,2867.6,0.1]
[1763950512525,0.1981,2867.8,2867.7,0.1]
[1763950512727,0.1981,2867.9,2866.7,0.4678]
[1763950512937,0.1981,2867.9,2867.8,0.1]
[1763950513139,0.6762,2867.9,2867.8,0.1]
[1763950514380,0.1981,2867.9,2867.8,0.1]
[1763950514878,0.6588,2867.9,2866.6,0.936802]
[1763950515077,0.6588,2867.9,2867.6,0.1]
[1763950515225,0.6588,2867.9,2867.8,0.1]
[1763950516027,0.6588,2867.9,2866.6,0.233]
[1763950516261,0.4727,2867.8,2867.3,0.1]
[1763950516770,0.4727,2867.8,2867.6,0.1]
[1763950517067,0.4727,2867.8,2867.3,0.1]
[1763950519307,0.90699264,2867.7,2866.2,0.1825]
[1763950519530,0.1861,2866.3,2865.4,0.1833]
[1763950519669,0.1861,2866.3,2864.9,3.13885799]
[1763950519670,0.1861,2866.3,2865.1,0.03]
[1763950519869,1.37969264,2866.2,2864.5,0.001]
[1763950520172,1.37969264,2866.2,2865.0,0.1]
[1763950520516,0.4727,2866.1,2864.5,0.001]
[1763950521017,0.4727,2866.1,2864.9,0.1]
[1763950521216,0.4727,2866.1,2864.6,0.1]
[1763950521420,0.1861,2864.7,2864.6,0.1]
[1763950521714,0.1861,2864.7,2864.5,0.001]
[1763950522093,0.1861,2865.0,2864.9,0.1]
[1763950522481,0.1861,2865.0,2864.5,0.001]
[1763950522482,0.1861,2865.3,2864.5,0.001]
[1763950522731,0.1861,2865.3,2865.1,0.1]
[1763950522887,0.4727,2865.2,2864.5,0.001]
[1763950523232,0.1861,2865.6,2864.5,0.0359101]
[1763950523524,0.1861,2866.3,2864.6,0.03490888]
[1763950523728,0.1861,2866.3,2864.8,3.49064507]
[1763950524016,0.6588,2866.3,2865.8,0.1]
[1763950524202,1.56579264,2866.3,2865.3,0.1]
[1763950524401,0.97815191,2866.2,2865.3,0.1]
[1763950524802,0.1861,2866.3,2864.5,0.001]
[1763950524803,0.4727,2866.1,2865.6,0.1]
[1763950525323,0.1861,2865.7,2865.2,0.1]
[1763950525521,0.4727,2866.1,2864.6,7.46517756]
[1763950525823,0.1861,2866.3,2865.9,0.1]
[1763950526128,0.4727,2866.6,2865.2,3.49013536]
[1763950526129,0.1861,2866.7,2866.5,0.1]
[1763950526288,0.6588,2867.0,2866.5,0.1]
[1763950526484,0.6588,2867.0,2866.9,0.1]
[1763950526821,0.6588,2867.0,2866.8,0.1]
[1763950527031,0.4727,2866.9,2866.3,0.1]
[1763950527801,0.4727,2866.9,2866.6,0.1]
[1763950528035,0.1861,2867.0,2866.9,0.1]
[1763950528509,0.6588,2867.0,2866.6,0.1]